Workbook

Sheet Test Sheet
A1: 2021-2학기 수업 피드백(중간설문) 결과
A2: 과목명(수강생) 및 문항별 응답율
A3: 전 공 명 | C3: 5G통신시스템 | D3: C4ISR체계공학 | F3: C4I시스템총론 | G3: IoT개론 | H3: IoT네트워크 | I3: IoT응용및서비스사례연구 | J3: IoT플랫폼 | K3: 국방소프트웨어 | L3: 국방정보화정책론 | M3: 기계학습및데이터마이닝 | N3: 데이터베이스보안 | O3: 디지털포렌식 | P3: 응답 인원
A4: 담당교수 | C4: 최영준 교수 | D4: 김영호 교수 | F4: 김혁래 교수 | G4: 고영배 교수 | H4: 김기형 교수 | I4: 유승화 교수 | J4: 김재훈 교수 | K4: 이장헌 교수 | L4: 임영갑 교수 | M4: 손경아 교수 | N4: 김강석 교수 | O4: 손태식 교수
A5: 수강인원 | C5: 17 | D5: 48 | F5: 15 | G5: 17 | H5: 46 | I5: 15 | J5: 50 | K5: 12 | L5: 19 | M5: 9 | N5: 81 | O5: 37
A6: 응답인원 | C6: 9 | D6: 15 | F6: 6 | G6: 5 | H6: 15 | I6: 5 | J6: 18 | K6: 6 | L6: 8 | M6: 4 | N6: 27 | O6: 9
A7: 응답률 | C7: =C6/C5*100 -> 52.94117647 | D7: =D6/D5*100 -> 31.25 | F7: 40 | G7: 29.41176471 | H7: 32.60869565 | I7: 33.33333333 | J7: 36 | K7: 50 | L7: 42.10526316 | M7: 44.44444444 | N7: 33.33333333 | O7: 24.32432432
A8: 1.현재까지 수강한 경험을 통해 각 항목별로 개선되기를 바라는 것을 체크해 주세요.
A9: 1-1) 강의자료 | B9: 1) 더 자세하게 | C9: 22% (2명) | D9: 20% (3명) | F9: 0% (0명) | G9: 20% (1명) | H9: 13% (2명) | I9: 0% (0명) | J9: 11% (2명) | K9: 0% (0명) | L9: 0% (0명) | M9: 25% (1명) | N9: 30% (8명) | O9: 22% (2명) | P9: 21 | Q9: 21 | R9: 17 | S9: 24 | T9: =Q9+R9+S9 -> 62
B10: 2) 만족한다 | C10: 78% (7명) | D10: 80% (12명) | F10: 100% (6명) | G10: 80% (4명) | H10: 80% (12명) | I10: 80% (4명) | J10: 83% (15명) | K10: 100% (6명) | L10: 100% (8명) | M10: 75% (3명) | N10: 70% (19명) | O10: 78% (7명) | P10: 103 | Q10: 117 | R10: 81 | S10: 102 | T10: =Q10+R10+S10 -> 300
B11: 3) 더 다양하게 | C11: 0% (0명) | D11: 0% (0명) | F11: 0% (0명) | G11: 0% (0명) | H11: 7% (1명) | I11: 20% (1명) | J11: 6% (1명) | K11: 0% (0명) | L11: 0% (0명) | M11: 0% (0명) | N11: 0% (0명) | O11: 0% (0명) | P11: 3 | Q11: 5 | R11: 2 | S11: 2 | T11: 9
A12: 1-2) 강의 동영상 | B12: 1) 더 이해하기 쉽게 | C12: 11% (1명) | D12: 20% (3명) | F12: 0% (0명) | G12: 20% (1명) | H12: 7% (1명) | I12: 0% (0명) | J12: 22% (4명) | K12: 0% (0명) | L12: 0% (0명) | M12: 25% (1명) | N12: 26% (7명) | O12: 11% (1명) | P12: 19 | Q12: 25 | R12: 23 | S12: 29 | T12: 77
B13: 2) 만족한다 | C13: 89% (8명) | D13: 80% (12명) | F13: 83% (5명) | G13: 80% (4명) | H13: 93% (14명) | I13: 100% (5명) | J13: 78% (14명) | K13: 100% (6명) | L13: 88% (7명) | M13: 75% (3명) | N13: 74% (20명) | O13: 89% (8명) | P13: 106 | Q13: 116 | R13: 76 | S13: 95 | T13: 287
B14: 3) 더 짧게 | C14: 0% (0명) | D14: 0% (0명) | F14: 17% (1명) | G14: 0% (0명) | H14: 0% (0명) | I14: 0% (0명) | J14: 0% (0명) | K14: 0% (0명) | L14: 12% (1명) | M14: 0% (0명) | N14: 0% (0명) | O14: 0% (0명) | P14: 2 | Q14: 2 | R14: 1 | S14: 4 | T14: 7
A15: 1-3) 수업 진도 | B15: 1) 너무 느리다 | C15: 0% (0명) | D15: 0% (0명) | F15: 0% (0명) | G15: 0% (0명) | H15: 0% (0명) | I15: 0% (0명) | J15: 6% (1명) | K15: 0% (0명) | L15: 0% (0명) | M15: 0% (0명) | N15: 0% (0명) | O15: 0% (0명) | P15: 1 | Q15: 1 | R15: 0 | S15: 0 | T15: 1
B16: 2) 적절하다 | C16: 89% (8명) | D16: 100% (15명) | F16: 100% (6명) | G16: 100% (5명) | H16: 100% (15명) | I16: 100% (5명) | J16: 94% (17명) | K16: 100% (6명) | L16: 100% (8명) | M16: 75% (3명) | N16: 89% (24명) | O16: 100% (9명) | P16: 121 | Q16: 134 | R16: 95 | S16: 118 | T16: 347
B17: 3) 너무 빠르다 | C17: 11% (1명) | D17: 0% (0명) | F17: 0% (0명) | G17: 0% (0명) | H17: 0% (0명) | I17: 0% (0명) | J17: 0% (0명) | K17: 0% (0명) | L17: 0% (0명) | M17: 25% (1명) | N17: 11% (3명) | O17: 0% (0명) | P17: 5 | Q17: 8 | R17: 5 | S17: 10 | T17: 23
A18: 1-4) 학습량 | B18: 1) 너무 적다 | C18: 0% (0명) | D18: 0% (0명) | F18: 0% (0명) | G18: 0% (0명) | H18: 0% (0명) | I18: 0% (0명) | J18: 0% (0명) | K18: 0% (0명) | L18: 0% (0명) | M18: 0% (0명) | N18: 0% (0명) | O18: 0% (0명) | P18: 0 | Q18: 0 | R18: 1 | S18: 1 | T18: 2
B19: 2) 적절하다 | C19: 100% (9명) | D19: 100% (15명) | F19: 100% (6명) | G19: 80% (4명) | H19: 100% (15명) | I19: 100% (5명) | J19: 89% (16명) | K19: 100% (6명) | L19: 100% (8명) | M19: 75% (3명) | N19: 93% (25명) | O19: 100% (9명) | P19: 121 | Q19: 128 | R19: 87 | S19: 114 | T19: 329
B20: 3) 너무 많다 | C20: 0% (0명) | D20: 0% (0명) | F20: 0% (0명) | G20: 20% (1명) | H20: 0% (0명) | I20: 0% (0명) | J20: 11% (2명) | K20: 0% (0명) | L20: 0% (0명) | M20: 25% (1명) | N20: 7% (2명) | O20: 0% (0명) | P20: 6 | Q20: 15 | R20: 12 | S20: 13 | T20: 40
A21: 1-5) 학습 부담 | B21: 1) 너무 쉽다 | C21: 0% (0명) | D21: 0% (0명) | F21: 0% (0명) | G21: 0% (0명) | H21: 0% (0명) | I21: 0% (0명) | J21: 0% (0명) | K21: 0% (0명) | L21: 0% (0명) | M21: 0% (0명) | N21: 0% (0명) | O21: 0% (0명) | P21: 0 | Q21: 2 | R21: 0 | S21: 1 | T21: 3
B22: 2) 적절하다 | C22: 89% (8명) | D22: 87% (13명) | F22: 100% (6명) | G22: 80% (4명) | H22: 100% (15명) | I22: 100% (5명) | J22: 100% (18명) | K22: 100% (6명) | L22: 100% (8명) | M22: 100% (4명) | N22: 93% (25명) | O22: 78% (7명) | P22: 119 | Q22: 124 | R22: 82 | S22: 107 | T22: 313
B23: 3) 너무 어렵다 | C23: 11% (1명) | D23: 13% (2명) | F23: 0% (0명) | G23: 20% (1명) | H23: 0% (0명) | I23: 0% (0명) | J23: 0% (0명) | K23: 0% (0명) | L23: 0% (0명) | M23: 0% (0명) | N23: 7% (2명) | O23: 22% (2명) | P23: 8 | Q23: 17 | R23: 18 | S23: 20 | T23: 55
A24: 2.당초 기대한 것에 비하여 현재까지 진행된 수업을 종합적으로 판단한 결과는? | T24: 0
A25: 1) 수업 진도에 맞추어 잘 수강하고 있다. | C25: 78% (7명) | D25: 93% (14명) | F25: 67% (4명) | G25: 80% (4명) | H25: 87% (13명) | I25: 100% (5명) | J25: 89% (16명) | K25: 83% (5명) | L25: 88% (7명) | M25: 100% (4명) | N25: 100% (27명) | O25: 100% (9명) | P25: 115 | Q25: 128 | R25: 79 | S25: 108 | T25: 315
A26: 2) 내가 예상한 것과 크게 달랐다. 다른 이유는 무엇인가요? | C26: 11% (1명) | D26: 7% (1명) | F26: 0% (0명) | G26: 20% (1명) | H26: 0% (0명) | I26: 0% (0명) | J26: 6% (1명) | K26: 0% (0명) | L26: 0% (0명) | M26: 0% (0명) | N26: 0% (0명) | O26: 0% (0명) | P26: 4 | Q26: 2 | R26: 5 | S26: 7 | T26: 14
A27: 3) 기대한 것보다 훨씬 만족한다. 만족한 이유는 무엇인가요? | C27: 11% (1명) | D27: 0% (0명) | F27: 33% (2명) | G27: 0% (0명) | H27: 13% (2명) | I27: 0% (0명) | J27: 6% (1명) | K27: 17% (1명) | L27: 0% (0명) | M27: 0% (0명) | N27: 0% (0명) | O27: 0% (0명) | P27: 7 | Q27: 11 | R27: 8 | S27: 9 | T27: 28
A28: 4) 기타 의견(서술형) | C28: 0% (0명) | D28: 0% (0명) | F28: 0% (0명) | G28: 0% (0명) | H28: 0% (0명) | I28: 0% (0명) | J28: 0% (0명) | K28: 0% (0명) | L28: 12% (1명) | M28: 0% (0명) | N28: 0% (0명) | O28: 0% (0명) | P28: 1 | Q28: 2 | R28: 8 | S28: 4 | T28: 14
A29: 3.이 수업의 장점이라고 생각되는 것을 체크해 주세요. | T29: 0
A30: 1) 교수자의 전문성과 풍부한 경험이 실감나는 수업 | C30: 44% (4명) | D30: 27% (4명) | F30: 50% (3명) | G30: 60% (3명) | H30: 40% (6명) | I30: 60% (3명) | J30: 44% (8명) | K30: 50% (3명) | L30: 25% (2명) | M30: 50% (2명) | N30: 37% (10명) | O30: 67% (6명) | P30: 54 | Q30: 71 | R30: 46 | S30: 70 | T30: 187
A31: 2) 수업 내용이 알차고 충실하면서도 현실적이고 유용한 수업 | C31: 22% (2명) | D31: 20% (3명) | F31: 17% (1명) | G31: 0% (0명) | H31: 33% (5명) | I31: 0% (0명) | J31: 6% (1명) | K31: 0% (0명) | L31: 12% (1명) | M31: 25% (1명) | N31: 33% (9명) | O31: 22% (2명) | P31: 25 | Q31: 28 | R31: 24 | S31: 16 | T31: 68
A32: 3) 교수자의 열의가 높고 학생과 함께 교감할 수 있는 수업 | C32: 22% (2명) | D32: 13% (2명) | F32: 17% (1명) | G32: 20% (1명) | H32: 7% (1명) | I32: 20% (1명) | J32: 11% (2명) | K32: 17% (1명) | L32: 25% (2명) | M32: 25% (1명) | N32: 7% (2명) | O32: 0% (0명) | P32: 16 | Q32: 22 | R32: 15 | S32: 18 | T32: 55
A33: 4) 지루하지 않고 집중할 수 있도록 교수자의 수업 운영 기술이 돋보이는 수업 | C33: 0% (0명) | D33: 27% (4명) | F33: 17% (1명) | G33: 0% (0명) | H33: 0% (0명) | I33: 0% (0명) | J33: 11% (2명) | K33: 17% (1명) | L33: 12% (1명) | M33: 0% (0명) | N33: 4% (1명) | O33: 0% (0명) | P33: 10 | Q33: 8 | R33: 6 | S33: 10 | T33: 24
A34: 5) 해당사항 없음 | C34: 11% (1명) | D34: 13% (2명) | F34: 0% (0명) | G34: 0% (0명) | H34: 20% (3명) | I34: 0% (0명) | J34: 28% (5명) | K34: 17% (1명) | L34: 25% (2명) | M34: 0% (0명) | N34: 19% (5명) | O34: 0% (0명) | P34: 19 | Q34: 10 | R34: 5 | S34: 14 | T34: 29
A35: 6) 기타 의견(서술형) | C35: 0% (0명) | D35: 0% (0명) | F35: 0% (0명) | G35: 20% (1명) | H35: 0% (0명) | I35: 20% (1명) | J35: 0% (0명) | K35: 0% (0명) | L35: 0% (0명) | M35: 0% (0명) | N35: 0% (0명) | O35: 11% (1명) | P35: 3 | Q35: 4 | R35: 4 | S35: 0 | T35: 8
A38: 2021-2학기 수업 피드백(중간설문) 결과
A39: 과목명(수강생) 및 문항별 응답율
A40: 전공명 | C40: 모바일C4I시스템 | D40: 무선이동통신 | E40: 미래C4ISR발전론 | F40: 빅데이터 | G40: 빅데이터분석 | H40: 사이버전 | I40: 상호운용성 | J40: 암호기술과응용 | K40: 운영체제 | L40: 위성통신시스템 | M40: 인공지능 | N40: 인터넷보안 | O40: 인터넷프로토콜 | P40: 응답 인원
A41: 교수명 | C41: 박재근 교수 | D41: 임재성 교수 | E41: 김혁래 교수 | F41: 이석원 교수 | G41: 김진철 교수 | H41: 이장헌 교수 | I41: 유철희 교수 | J41: 예홍진 교수 | K41: 최경희 교수 | L41: 최근경 교수 | M41: 김민구 교수 | N41: 김기형 교수 | O41: 노병희 교수
A42: 수강인원 | C42: 20 | D42: 12 | E42: 72 | F42: 26 | G42: 42 | H42: 30 | I42: 13 | J42: 80 | K42: 82 | L42: 17 | M42: 63 | N42: 46 | O42: 50
A43: 응답인원 | C43: 7 | D43: 3 | E43: 19 | F43: 12 | G43: 15 | H43: 12 | I43: 3 | J43: 26 | K43: 21 | L43: 8 | M43: 24 | N43: 19 | O43: 19
A44: 응답률 | C44: =C43/C42*100 -> 35 | D44: =D43/D42*100 -> 25 | E44: 26.38888889 | F44: 46.15384615 | G44: 35.71428571 | H44: 40 | I44: 23.07692308 | J44: 32.5 | K44: 25.6097561 | L44: 47.05882353 | M44: 38.0952381 | N44: 41.30434783 | O44: 38
A45: 1.현재까지 수강한 경험을 통해 각 항목별로 개선되기를 바라는 것을 체크해 주세요.
A46: 1-1) 강의자료 | B46: 1) 더 자세하게 | C46: 14% (1명) | D46: 0% (0명) | E46: 5% (1명) | F46: 8% (1명) | G46: 13% (2명) | H46: 0% (0명) | I46: 0% (0명) | J46: 23% (6명) | K46: 29% (6명) | L46: 12% (1명) | M46: 17% (4명) | N46: 21% (4명) | O46: 11% (2명) | P46: 28
B47: 2) 만족한다 | C47: 86% (6명) | D47: 100% (3명) | E47: 95% (18명) | F47: 92% (11명) | G47: 80% (12명) | H47: 100% (12명) | I47: 100% (3명) | J47: 73% (19명) | K47: 67% (14명) | L47: 88% (7명) | M47: 83% (20명) | N47: 74% (14명) | O47: 89% (17명) | P47: 156
B48: 3) 더 다양하게 | C48: 0% (0명) | D48: 0% (0명) | E48: 0% (0명) | F48: 0% (0명) | G48: 7% (1명) | H48: 0% (0명) | I48: 0% (0명) | J48: 4% (1명) | K48: 5% (1명) | L48: 0% (0명) | M48: 0% (0명) | N48: 5% (1명) | O48: 0% (0명) | P48: 4
A49: 1-2) 강의 동영상 | B49: 1) 더 이해하기 쉽게 | C49: 14% (1명) | D49: 0% (0명) | E49: 11% (2명) | F49: 8% (1명) | G49: 13% (2명) | H49: 0% (0명) | I49: 0% (0명) | J49: 31% (8명) | K49: 29% (6명) | L49: 12% (1명) | M49: 17% (4명) | N49: 11% (2명) | O49: 16% (3명) | P49: 30
B50: 2) 만족한다 | C50: 86% (6명) | D50: 100% (3명) | E50: 89% (17명) | F50: 92% (11명) | G50: 87% (13명) | H50: 100% (12명) | I50: 100% (3명) | J50: 69% (18명) | K50: 71% (15명) | L50: 88% (7명) | M50: 83% (20명) | N50: 89% (17명) | O50: 79% (15명) | P50: 157
B51: 3) 더 짧게 | C51: 0% (0명) | D51: 0% (0명) | E51: 0% (0명) | F51: 0% (0명) | G51: 0% (0명) | H51: 0% (0명) | I51: 0% (0명) | J51: 0% (0명) | K51: 0% (0명) | L51: 0% (0명) | M51: 0% (0명) | N51: 0% (0명) | O51: 5% (1명) | P51: 1
A52: 1-3) 수업 진도 | B52: 1) 너무 느리다 | C52: 0% (0명) | D52: 0% (0명) | E52: 0% (0명) | F52: 0% (0명) | G52: 0% (0명) | H52: 0% (0명) | I52: 0% (0명) | J52: 0% (0명) | K52: 0% (0명) | L52: 0% (0명) | M52: 0% (0명) | N52: 0% (0명) | O52: 0% (0명) | P52: 0
B53: 2) 적절하다 | C53: 100% (7명) | D53: 100% (3명) | E53: 95% (18명) | F53: 100% (12명) | G53: 100% (15명) | H53: 100% (12명) | I53: 100% (3명) | J53: 88% (23명) | K53: 86% (18명) | L53: 100% (8명) | M53: 96% (23명) | N53: 84% (16명) | O53: 84% (16명) | P53: 174
B54: 3) 너무 빠르다 | C54: 0% (0명) | D54: 0% (0명) | E54: 5% (1명) | F54: 0% (0명) | G54: 0% (0명) | H54: 0% (0명) | I54: 0% (0명) | J54: 12% (3명) | K54: 14% (3명) | L54: 0% (0명) | M54: 4% (1명) | N54: 16% (3명) | O54: 16% (3명) | P54: 14
A55: 1-4) 학습량 | B55: 1) 너무 적다 | C55: 0% (0명) | D55: 0% (0명) | E55: 0% (0명) | F55: 0% (0명) | G55: 0% (0명) | H55: 0% (0명) | I55: 0% (0명) | J55: 0% (0명) | K55: 0% (0명) | L55: 0% (0명) | M55: 0% (0명) | N55: 0% (0명) | O55: 0% (0명) | P55: 0
B56: 2) 적절하다 | C56: 100% (7명) | D56: 100% (3명) | E56: 95% (18명) | F56: 92% (11명) | G56: 93% (14명) | H56: 100% (12명) | I56: 100% (3명) | J56: 73% (19명) | K56: 76% (16명) | L56: 88% (7명) | M56: 96% (23명) | N56: 84% (16명) | O56: 68% (13명) | P56: 162
B57: 3) 너무 많다 | C57: 0% (0명) | D57: 0% (0명) | E57: 5% (1명) | F57: 8% (1명) | G57: 7% (1명) | H57: 0% (0명) | I57: 0% (0명) | J57: 27% (7명) | K57: 24% (5명) | L57: 12% (1명) | M57: 4% (1명) | N57: 16% (3명) | O57: 32% (6명) | P57: 26
A58: 1-5) 학습 부담 | B58: 1) 너무 쉽다 | C58: 0% (0명) | D58: 0% (0명) | E58: 0% (0명) | F58: 0% (0명) | G58: 0% (0명) | H58: 0% (0명) | I58: 0% (0명) | J58: 0% (0명) | K58: 0% (0명) | L58: 0% (0명) | M58: 0% (0명) | N58: 0% (0명) | O58: 0% (0명) | P58: 0
B59: 2) 적절하다 | C59: 100% (7명) | D59: 67% (2명) | E59: 89% (17명) | F59: 92% (11명) | G59: 100% (15명) | H59: 100% (12명) | I59: 100% (3명) | J59: 58% (15명) | K59: 67% (14명) | L59: 88% (7명) | M59: 79% (19명) | N59: 89% (17명) | O59: 79% (15명) | P59: 154
B60: 3) 너무 어렵다 | C60: 0% (0명) | D60: 33% (1명) | E60: 11% (2명) | F60: 8% (1명) | G60: 0% (0명) | H60: 0% (0명) | I60: 0% (0명) | J60: 42% (11명) | K60: 33% (7명) | L60: 12% (1명) | M60: 21% (5명) | N60: 11% (2명) | O60: 21% (4명) | P60: 34
A61: 2.당초 기대한 것에 비하여 현재까지 진행된 수업을 종합적으로 판단한 결과는?
A62: 1) 수업 진도에 맞추어 잘 수강하고 있다. | C62: 71% (5명) | D62: 67% (2명) | E62: 84% (16명) | F62: 100% (12명) | G62: 87% (13명) | H62: 92% (11명) | I62: 100% (3명) | J62: 88% (23명) | K62: 90% (19명) | L62: 100% (8명) | M62: 88% (21명) | N62: 84% (16명) | O62: 68% (13명) | P62: 162
A63: 2) 내가 예상한 것과 크게 달랐다. 다른 이유는 무엇인가요? | C63: 0% (0명) | D63: 33% (1명) | E63: 0% (0명) | F63: 0% (0명) | G63: 0% (0명) | H63: 0% (0명) | I63: 0% (0명) | J63: 4% (1명) | K63: 0% (0명) | L63: 0% (0명) | M63: 4% (1명) | N63: 11% (2명) | O63: 5% (1명) | P63: 6
A64: 3) 기대한 것보다 훨씬 만족한다. 만족한 이유는 무엇인가요? | C64: 14% (1명) | D64: 0% (0명) | E64: 16% (3명) | F64: 0% (0명) | G64: 13% (2명) | H64: 8% (1명) | I64: 0% (0명) | J64: 4% (1명) | K64: 5% (1명) | L64: 0% (0명) | M64: 4% (1명) | N64: 0% (0명) | O64: 16% (3명) | P64: 13
A65: 4) 기타 의견(서술형) | C65: 14% (1명) | D65: 0% (0명) | E65: 0% (0명) | F65: 0% (0명) | G65: 0% (0명) | H65: 0% (0명) | I65: 0% (0명) | J65: 4% (1명) | K65: 5% (1명) | L65: 0% (0명) | M65: 4% (1명) | N65: 5% (1명) | O65: 11% (2명) | P65: 7
A66: 3.이 수업의 장점이라고 생각되는 것을 체크해 주세요.
A67: 1) 교수자의 전문성과 풍부한 경험이 실감나는 수업 | C67: 43% (3명) | D67: 33% (1명) | E67: 58% (11명) | F67: 25% (3명) | G67: 53% (8명) | H67: 42% (5명) | I67: 67% (2명) | J67: 42% (11명) | K67: 29% (6명) | L67: 38% (3명) | M67: 67% (16명) | N67: 26% (5명) | O67: 26% (5명) | P67: 79
A68: 2) 수업 내용이 알차고 충실하면서도 현실적이고 유용한 수업 | C68: 29% (2명) | D68: 0% (0명) | E68: 21% (4명) | F68: 42% (5명) | G68: 20% (3명) | H68: 17% (2명) | I68: 33% (1명) | J68: 23% (6명) | K68: 24% (5명) | L68: 25% (2명) | M68: 12% (3명) | N68: 21% (4명) | O68: 26% (5명) | P68: 42
A69: 3) 교수자의 열의가 높고 학생과 함께 교감할 수 있는 수업 | C69: 0% (0명) | D69: 0% (0명) | E69: 21% (4명) | F69: 8% (1명) | G69: 7% (1명) | H69: 25% (3명) | I69: 0% (0명) | J69: 23% (6명) | K69: 38% (8명) | L69: 25% (2명) | M69: 8% (2명) | N69: 32% (6명) | O69: 32% (6명) | P69: 39
A70: 4) 지루하지 않고 집중할 수 있도록 교수자의 수업 운영 기술이 돋보이는 수업 | C70: 29% (2명) | D70: 67% (2명) | E70: 0% (0명) | F70: 25% (3명) | G70: 13% (2명) | H70: 17% (2명) | I70: 0% (0명) | J70: 4% (1명) | K70: 0% (0명) | L70: 0% (0명) | M70: 0% (0명) | N70: 16% (3명) | O70: 11% (2명) | P70: 17
A71: 5) 해당사항 없음 | C71: 0% (0명) | D71: 0% (0명) | E71: 0% (0명) | F71: 0% (0명) | G71: 7% (1명) | H71: 0% (0명) | I71: 0% (0명) | J71: 8% (2명) | K71: 10% (2명) | L71: 12% (1명) | M71: 12% (3명) | N71: 0% (0명) | O71: 5% (1명) | P71: 10
A72: 6) 기타 의견(서술형) | C72: 0% (0명) | D72: 0% (0명) | E72: 0% (0명) | F72: 0% (0명) | G72: 0% (0명) | H72: 0% (0명) | I72: 0% (0명) | J72: 0% (0명) | K72: 0% (0명) | L72: 0% (0명) | M72: 0% (0명) | N72: 5% (1명) | O72: 0% (0명) | P72: 1
A76: 2021-1학기 수업 피드백(중간설문) 결과
A77: 과목명(수강생) 및 문항별 응답율 | L77: 결과(합계)
A78: 전공명 | C78: 정보보호 | D78: 정보체계사업관리론 | E78: 지능형정보검색 | F78: 지능형C4I | G78: 지휘통제론 | H78: 첨단국방ICT융합론 | I78: 컴퓨터공학론 | J78: 컴퓨터통신 | K78: 응답 인원
A79: 교수명 | C79: 김재훈 교수 | D79: 김화수 교수 | E79: 이석원 교수 | F79: 조봉익 교수 | G79: 신병호 교수 | H79: 김화수 교수 | I79: 김동윤 교수 | J79: 조영종 교수
A80: 수강인원 | C80: 41 | D80: 21 | E80: 16 | F80: 33 | G80: 10 | H80: 70 | I80: 30 | J80: 29 | L80: 대상자 | M80: =SUM(C5:O5,C42:O42,C80:J80) -> 1169
A81: 응답인원 | C81: 17 | D81: 6 | E81: 9 | F81: 4 | G81: 3 | H81: 25 | I81: 10 | J81: 10 | L81: 응답자 | M81: =SUM(C6:O6,C43:O43,C81:J81) -> 399
A82: 응답률 | C82: =C81/C80*100 -> 41.46341463 | D82: =D81/D80*100 -> 28.57142857 | E82: 56.25 | F82: 12.12121212 | G82: 30 | H82: 35.71428571 | I82: 33.33333333 | J82: 34.48275862 | L82: 전체 응답률 | M82: =M81/M80*100 -> 34.13173653
A83: 1.현재까지 수강한 경험을 통해 각 항목별로 개선되기를 바라는 것을 체크해 주세요. | L83: 총 응답자(명) | M83: 총 응답률(%)
A84: 1-1) 강의자료 | B84: 1) 더 자세하게 | C84: 18% (3명) | D84: 0% (0명) | E84: 22% (2명) | F84: 0% (0명) | G84: 0% (0명) | H84: 8% (2명) | I84: 0% (0명) | J84: 40% (4명) | K84: 11 | L84: =SUM(P9,P46,K84) -> 60 | M84: =L84/M81*100 -> 15.03759398
B85: 2) 만족한다 | C85: 82% (14명) | D85: 100% (6명) | E85: 44% (4명) | F85: 100% (4명) | G85: 100% (3명) | H85: 92% (23명) | I85: 100% (10명) | J85: 60% (6명) | K85: 70 | L85: 329 | M85: =L85/M81*100 -> 82.45614035
B86: 3) 더 다양하게 | C86: 0% (0명) | D86: 0% (0명) | E86: 33% (3명) | F86: 0% (0명) | G86: 0% (0명) | H86: 0% (0명) | I86: 0% (0명) | J86: 0% (0명) | K86: 3 | L86: 10 | M86: =L86/M81*100 -> 2.506265664
A87: 1-2) 강의 동영상 | B87: 1) 더 이해하기 쉽게 | C87: 18% (3명) | D87: 0% (0명) | E87: 33% (3명) | F87: 0% (0명) | G87: 0% (0명) | H87: 8% (2명) | I87: 20% (2명) | J87: 40% (4명) | K87: 14 | L87: 63 | M87: =L87/M81*100 -> 15.78947368
B88: 2) 만족한다 | C88: 82% (14명) | D88: 100% (6명) | E88: 56% (5명) | F88: 100% (4명) | G88: 100% (3명) | H88: 88% (22명) | I88: 80% (8명) | J88: 60% (6명) | K88: 68 | L88: 331 | M88: =L88/M81*100 -> 82.95739348
B89: 3) 더 짧게 | C89: 0% (0명) | D89: 0% (0명) | E89: 11% (1명) | F89: 0% (0명) | G89: 0% (0명) | H89: 4% (1명) | I89: 0% (0명) | J89: 0% (0명) | K89: 2 | L89: 5 | M89: =L89/M81*100 -> 1.253132832
A90: 1-3) 수업 진도 | B90: 1) 너무 느리다 | C90: 0% (0명) | D90: 0% (0명) | E90: 0% (0명) | F90: 0% (0명) | G90: 0% (0명) | H90: 0% (0명) | I90: 0% (0명) | J90: 0% (0명) | K90: 0 | L90: 1 | M90: =L90/M81*100 -> 0.2506265664
B91: 2) 적절하다 | C91: 88% (15명) | D91: 100% (6명) | E91: 100% (9명) | F91: 100% (4명) | G91: 100% (3명) | H91: 92% (23명) | I91: 90% (9명) | J91: 90% (9명) | K91: 78 | L91: 373 | M91: =L91/M81*100 -> 93.48370927
B92: 3) 너무 빠르다 | C92: 12% (2명) | D92: 0% (0명) | E92: 0% (0명) | F92: 0% (0명) | G92: 0% (0명) | H92: 8% (2명) | I92: 10% (1명) | J92: 10% (1명) | K92: 6 | L92: 25 | M92: =L92/M81*100 -> 6.26566416
A93: 1-4) 학습량 | B93: 1) 너무 적다 | C93: 0% (0명) | D93: 0% (0명) | E93: 0% (0명) | F93: 0% (0명) | G93: 0% (0명) | H93: 0% (0명) | I93: 0% (0명) | J93: 0% (0명) | K93: 0 | L93: 0 | M93: =L93/M81*100 -> 0
B94: 2) 적절하다 | C94: 88% (15명) | D94: 100% (6명) | E94: 89% (8명) | F94: 100% (4명) | G94: 67% (2명) | H94: 88% (22명) | I94: 90% (9명) | J94: 80% (8명) | K94: 74 | L94: 357 | M94: =L94/M81*100 -> 89.47368421
B95: 3) 너무 많다 | C95: 12% (2명) | D95: 0% (0명) | E95: 11% (1명) | F95: 0% (0명) | G95: 33% (1명) | H95: 12% (3명) | I95: 10% (1명) | J95: 20% (2명) | K95: 10 | L95: 42 | M95: =L95/M81*100 -> 10.52631579
A96: 1-5) 학습 부담 | B96: 1) 너무 쉽다 | C96: 0% (0명) | D96: 0% (0명) | E96: 0% (0명) | F96: 0% (0명) | G96: 0% (0명) | H96: 0% (0명) | I96: 0% (0명) | J96: 0% (0명) | K96: 0 | L96: 0 | M96: =L96/M81*100 -> 0
B97: 2) 적절하다 | C97: 88% (15명) | D97: 100% (6명) | E97: 89% (8명) | F97: 100% (4명) | G97: 67% (2명) | H97: 92% (23명) | I97: 90% (9명) | J97: 60% (6명) | K97: 73 | L97: 346 | M97: =L97/M81*100 -> 86.71679198
B98: 3) 너무 어렵다 | C98: 12% (2명) | D98: 0% (0명) | E98: 11% (1명) | F98: 0% (0명) | G98: 33% (1명) | H98: 8% (2명) | I98: 10% (1명) | J98: 40% (4명) | K98: 11 | L98: 53 | M98: =L98/M81*100 -> 13.28320802
A99: 2.당초 기대한 것에 비하여 현재까지 진행된 수업을 종합적으로 판단한 결과는?
A100: 1) 수업 진도에 맞추어 잘 수강하고 있다. | C100: 82% (14명) | D100: 100% (6명) | E100: 100% (9명) | F100: 100% (4명) | G100: 67% (2명) | H100: 92% (23명) | I100: 90% (9명) | J100: 60% (6명) | K100: 73 | L100: =SUM(P25,P62,K100) -> 350 | M100: =L100/M81*100 -> 87.71929825
A101: 2) 내가 예상한 것과 크게 달랐다. 다른 이유는 무엇인가요? | C101: 12% (2명) | D101: 0% (0명) | E101: 0% (0명) | F101: 0% (0명) | G101: 0% (0명) | H101: 0% (0명) | I101: 0% (0명) | J101: 20% (2명) | K101: 4 | L101: =SUM(P26,P63,K101) -> 14 | M101: =L101/M81*100 -> 3.50877193
A102: 3) 기대한 것보다 훨씬 만족한다. 만족한 이유는 무엇인가요? | C102: 6% (1명) | D102: 0% (0명) | E102: 0% (0명) | F102: 0% (0명) | G102: 33% (1명) | H102: 8% (2명) | I102: 10% (1명) | J102: 10% (1명) | K102: 6 | L102: =SUM(P27,P64,K102) -> 26 | M102: =L102/M81*100 -> 6.516290727
A103: 4) 기타 의견(서술형) | C103: 0% (0명) | D103: 0% (0명) | E103: 0% (0명) | F103: 0% (0명) | G103: 0% (0명) | H103: 0% (0명) | I103: 0% (0명) | J103: 10% (1명) | K103: 1 | L103: =SUM(P28,P65,K103) -> 9 | M103: =L103/M81*100 -> 2.255639098
A104: 3.이 수업의 장점이라고 생각되는 것을 체크해 주세요.
A105: 1) 교수자의 전문성과 풍부한 경험이 실감나는 수업 | C105: 35% (6명) | D105: 50% (3명) | E105: 44% (4명) | F105: 50% (2명) | G105: 33% (1명) | H105: 60% (15명) | I105: 40% (4명) | J105: 20% (2명) | K105: 37 | L105: =SUM(P30,P67,K105) -> 170 | M105: =L105/M81*100 -> 42.60651629
A106: 2) 수업 내용이 알차고 충실하면서도 현실적이고 유용한 수업 | C106: 29% (5명) | D106: 17% (1명) | E106: 33% (3명) | F106: 0% (0명) | G106: 67% (2명) | H106: 20% (5명) | I106: 20% (2명) | J106: 30% (3명) | K106: 21 | L106: 88 | M106: =L106/M81*100 -> 22.05513784
A107: 3) 교수자의 열의가 높고 학생과 함께 교감할 수 있는 수업 | C107: 18% (3명) | D107: 17% (1명) | E107: 0% (0명) | F107: 25% (1명) | G107: 0% (0명) | H107: 20% (5명) | I107: 30% (3명) | J107: 0% (0명) | K107: 13 | L107: 68 | M107: =L107/M81*100 -> 17.04260652
A108: 4) 지루하지 않고 집중할 수 있도록 교수자의 수업 운영 기술이 돋보이는 수업 | C108: 6% (1명) | D108: 17% (1명) | E108: 11% (1명) | F108: 0% (0명) | G108: 0% (0명) | H108: 0% (0명) | I108: 0% (0명) | J108: 0% (0명) | K108: 3 | L108: 30 | M108: =L108/M81*100 -> 7.518796992
A109: 5) 해당사항 없음 | C109: 12% (2명) | D109: 0% (0명) | E109: 11% (1명) | F109: 25% (1명) | G109: 0% (0명) | H109: 0% (0명) | I109: 10% (1명) | J109: 50% (5명) | K109: 10 | L109: 39 | M109: =L109/M81*100 -> 9.77443609
A110: 6) 기타 의견(서술형) | C110: 0% (0명) | D110: 0% (0명) | E110: 0% (0명) | F110: 0% (0명) | G110: 0% (0명) | H110: 0% (0명) | I110: 0% (0명) | J110: 0% (0명) | K110: 0 | L110: 4 | M110: =L110/M81*100 -> 1.002506266
